fUST/lending_fUST_20250408
["ID","MTS","AMOUNT","RATE_DAILY","PERIOD"]
[357497110,1744089059253,-151.0,0.0002218,2]
[357497111,1744089059262,-151.0,0.0002218,7]
[357497112,1744089059271,-1897.89,0.0002245,2]
[357497113,1744089059281,-500.0,0.00022451,2]
[357497114,1744089059290,-335.63641366,0.00022452,2]
[357497115,1744089059300,-755.95,0.00022452,2]
[357497116,1744089059309,-718.24,0.00022452,2]
[357497117,1744089059319,-500.0,0.00022452,2]
[357497118,1744089059328,-858.2,0.00022452,2]
[357497119,1744089059337,-870.52,0.00022452,2]
[357497120,1744089059346,-500.0,0.00022452,2]
[357497121,1744089059356,-621.87,0.00022452,2]
[357497122,1744089059365,-151.0,0.00022452,7]
[357497123,1744089059375,-795.71,0.00022452,2]
[357497124,1744089059384,-1510.87,0.00022452,2]
[357497125,1744089059394,-1537.45,0.00022452,2]
[357497126,1744089059403,-951.08,0.00022452,2]
[357497127,1744089059414,-1629.718022,0.00022452,2]
[357497128,1744089059423,-1629.718022,0.00022452,2]
[357497129,1744089059437,-840.84,0.00022452,2]
[357497130,1744089059448,-500.0,0.00022452,2]
[357497131,1744089059458,-500.0,0.00022452,2]
[357497132,1744089059468,-1496.91,0.00022452,2]
[357497133,1744089059478,-853.7,0.00022452,2]
[357497134,1744089059488,-500.0,0.00022452,2]
[357497135,1744089059497,-500.0,0.00022453,2]
[357497136,1744089059506,-500.0,0.00022453,2]
[357497137,1744089059516,-725.31,0.00022453,2]
[357497138,1744089059526,-2542.45,0.00022453,2]
[357497139,1744089059535,-500.0,0.00022453,2]
[357497140,1744089059544,-151.0,0.00022453,7]
[357497141,1744089059555,-151.0,0.00022453,7]
[357497142,1744089059564,-500.0,0.00022453,2]
[357497143,1744089059574,-151.0,0.00022453,7]
[357497144,1744089059583,-151.0,0.00022453,7]
[357497145,1744089059593,-274.185116,0.00022453,7]
[357497146,1744089059728,-500.0,0.00022453,2]
[357497147,1744089059738,-180.03207,0.00022453,7]
[357497148,1744089059747,-180.03207,0.00022453,7]
[357497149,1744089059757,-500.0,0.00022453,2]
[357497150,1744089059767,-864.99,0.00022453,2]
[357497151,1744089059776,-500.0,0.00022453,2]
[357497152,1744089059785,-500.0,0.00022454,2]
[357497153,1744089059794,-500.0,0.00022454,2]
[357497154,1744089059803,-437.485,0.00022567,2]
[357497155,1744089059818,-204.90518406,0.00022567,2]
[357497156,1744089059828,-527.23745217,0.00022616,2]
[357497157,1744089059837,-5346.01521248,0.000227,4]
[357497158,1744089059847,-5346.01521239,0.000227,4]
[357497159,1744089059857,-215.0738,0.00022713,2]
[357497160,1744089059867,-3306.77,0.00022723,2]
[357497161,1744089059877,-1076.62,0.00022723,2]
[357497162,1744089059887,-500.0,0.00022723,2]
[357497163,1744089059897,-871.92,0.00022724,2]
[357497164,1744089059906,-546.09381794,0.00022724,2]
[357497165,1744089059916,-1067.01,0.00022724,2]
[357497166,1744089059926,-500.0,0.00022724,2]
[357497167,1744089059936,-3362.4,0.00022724,2]
[357497168,1744089059946,-1275.39,0.00022724,2]
[357497169,1744089059956,-1270.81,0.00022724,2]
[357497170,1744089059966,-747.45,0.00022724,2]
[357497171,1744089059976,-1851.44,0.00022724,2]
[357497172,1744089059985,-716.97,0.00022724,2]
[357497173,1744089059995,-500.0,0.00022724,2]
[357497174,1744089060004,-1266.24,0.00022724,2]
[357497175,1744089060014,-1102.77,0.00022724,2]
[357497176,1744089060023,-794.99,0.00022724,2]
[357497177,1744089060033,-599.26773213,0.00022724,2]
[357497178,1744089060043,-1509.7,0.00022724,2]
[357497179,1744089060054,-1897.89,0.00022724,2]
[357497180,1744089060064,-500.0,0.00022725,2]
[357497181,1744089060073,-500.0,0.00022725,2]
[357497182,1744089060083,-500.0,0.00022725,2]
[357497183,1744089060094,-842.38,0.00022725,2]
[357497184,1744089060104,-291.78216287,0.00022725,2]
[357497185,1744089060115,-500.0,0.00022725,2]
[357497186,1744089060124,-615.44,0.00022725,2]
[357497187,1744089060136,-500.0,0.00022725,2]
[357497188,1744089060145,-500.0,0.00022725,2]
[357497189,1744089060155,-500.0,0.00022725,2]
[357497190,1744089060165,-500.0,0.00022725,2]
[357497191,1744089060174,-500.0,0.00022725,2]
[357497192,1744089060183,-500.0,0.00022725,2]
[357497193,1744089060193,-500.0,0.00022725,2]
[357497194,1744089060203,-482.11154879,0.00022725,2]
[357497195,1744089060213,-500.0,0.00022725,2]
[357497196,1744089060223,-871.68,0.00022725,2]
[357497197,1744089060233,-500.0,0.00022725,2]
[357497198,1744089060243,-1498.88,0.00022725,2]
[357497199,1744089060253,-779.37,0.00022725,2]
[357497200,1744089060263,-500.0,0.00022725,2]
[357497201,1744089060273,-914.47,0.00022725,2]
[357497202,1744089060283,-500.0,0.00022725,2]
[357497203,1744089060294,-500.0,0.00022725,2]
[357497204,1744089060304,-599.76216456,0.00022725,2]
[357497205,1744089060314,-1105.01,0.00022725,2]
[357497206,1744089060324,-500.0,0.00022725,2]
[357497207,1744089060334,-870.44,0.00022725,2]
[357497208,1744089060344,-569.03584126,0.00022725,2]
[357497209,1744089074975,-159.5185218,0.00019983,2]
[357497210,1744089075350,-159.5185218,0.00019983,2]
[357497211,1744089457673,1450.39,0.00016,2]
[357497214,1744090064850,10000.0,0.00022,10]
[357497216,1744090079329,3315.53,0.00016,2]
[357497217,1744090094829,3036.66124057,0.000125,2]
[357497218,1744090095521,-180.235759,0.00019053,2]
[357497219,1744090114249,-158.47682493,0.00019971,2]
[357497220,1744090114278,-341.52317507,0.00019981,2]
[357497221,1744090118529,-305.8,0.00019981,2]
[357497226,1744090185075,294.13,0.00022,10]
[357497270,1744090231974,-194.72792766,0.00019971,2]
[357497271,1744090231984,-200.0,0.00019971,2]
[357497273,1744090231994,-300.0,0.0001998,2]
[357497275,1744090232004,-500.0,0.0001998,2]
[357497276,1744090232013,-500.0,0.0001998,2]
[357497277,1744090232023,-500.0,0.0001998,2]
[357497278,1744090232033,-500.0,0.0001998,2]
[357497279,1744090232043,-643.8963782,0.0001998,2]
[357497280,1744090232053,-500.0,0.0001998,2]
[357497281,1744090232063,-551.84,0.0001998,2]
[357497282,1744090232072,-156.69125639,0.00019981,2]
[357497283,1744090232082,-500.0,0.00019981,2]
[357497284,1744090232092,-500.0,0.00019981,2]
[357497285,1744090232102,-231.37624048,0.00019981,2]
[357497286,1744090232111,-500.0,0.00019981,2]
[357497287,1744090232121,-500.0,0.00019981,2]
[357497288,1744090232130,-500.0,0.00019981,2]
[357497289,1744090232139,-583.5,0.00019981,2]
[357497290,1744090232149,-500.0,0.00019981,2]
[357497291,1744090232158,-818.3,0.00019981,2]
[357497292,1744090232168,-500.0,0.00019981,2]
[357497293,1744090232178,-500.0,0.00019981,2]
[357497294,1744090232187,-2302.42,0.00019981,2]
[357497295,1744090232198,-924.23,0.00019981,2]
[357497296,1744090232207,-500.0,0.00019981,2]
[357497297,1744090232217,-920.99,0.00019981,2]
[357497298,1744090232227,-500.0,0.00019981,2]
[357497299,1744090232236,-2679.96,0.00019981,2]
[357497300,1744090232246,-500.0,0.00019981,2]
[357497301,1744090232255,-500.0,0.00019981,2]
[357497302,1744090232265,-559.7,0.00019981,2]
[357497303,1744090232274,-770.69,0.00019981,2]
[357497304,1744090232283,-500.0,0.00019981,2]
[357497305,1744090232293,-500.0,0.00019981,2]
[357497306,1744090232303,-500.0,0.00019981,2]
[357497307,1744090232313,-1419.97,0.00019981,2]
[357497308,1744090232322,-1230.42,0.00019981,2]
[357497309,1744090232332,-500.0,0.00019981,2]
[357497310,1744090232341,-969.67,0.00019981,2]
[357497311,1744090232351,-392.94348101,0.00019981,2]
[357497312,1744090232360,-500.0,0.00019981,2]
[357497313,1744090232370,-500.0,0.00019981,2]
[357497314,1744090232380,-500.0,0.00019981,2]
[357497315,1744090232390,-500.0,0.00019981,2]
[357497316,1744090232399,-1157.85,0.00019981,2]
[357497317,1744090232408,-500.0,0.00019981,2]
[357497318,1744090232419,-500.0,0.00019981,2]
[357497319,1744090232428,-813.13,0.00019981,2]
[357497320,1744090232437,-667.97,0.00019981,2]
[357497321,1744090232447,-500.0,0.00019981,2]
[357497322,1744090232456,-500.0,0.00019982,2]
[357497323,1744090232466,-500.0,0.00019982,2]
[357497324,1744090232476,-500.0,0.00019982,2]
[357497325,1744090232486,-500.0,0.00019982,2]
[357497326,1744090232495,-500.0,0.00019982,2]
[357497327,1744090232505,-161.00784197,0.00019982,2]
[357497328,1744090232515,-180.9629564,0.00019982,2]
[357497329,1744090232525,-255.97269917,0.00019982,2]
[357497330,1744090232535,-364.78320232,0.00019982,2]
[357497331,1744090232544,-500.0,0.00019982,2]
[357497332,1744090232554,-500.0,0.00019982,2]
[357497333,1744090232564,-500.0,0.00019982,2]
[357497334,1744090232573,-500.0,0.00019982,2]
[357497335,1744090232583,-500.0,0.00019982,2]
[357497336,1744090232593,-500.0,0.00019982,2]
[357497337,1744090232603,-500.0,0.00019982,2]
[357497338,1744090232613,-500.0,0.00019982,2]
[357497339,1744090232623,-500.0,0.00019982,2]
[357497340,1744090232632,-514.89793425,0.00019982,2]
[357497341,1744090232642,-500.0,0.00019982,2]
[357497342,1744090232651,-500.0,0.00019982,2]
[357497343,1744090232660,-500.0,0.00019982,2]
[357497344,1744090232670,-500.0,0.00019982,2]
[357497345,1744090232680,-500.0,0.00019982,2]
[357497346,1744090232689,-500.0,0.00019982,2]
[357497347,1744090232699,-500.0,0.00019982,2]
[357497348,1744090232708,-500.0,0.00019982,2]
[357497349,1744090232717,-500.0,0.00019982,2]
[357497350,1744090232727,-500.0,0.00019982,2]
[357497351,1744090232736,-155.06566781,0.00019982,2]
[357497352,1744090232746,-500.0,0.00019982,2]
[357497353,1744090232755,-500.0,0.00019982,2]
[357497354,1744090232765,-317.06538171,0.00019982,2]
[357497355,1744090232774,-582.984004,0.00019982,2]
[357497356,1744090232784,-500.0,0.00019982,2]
[357497357,1744090232795,-500.0,0.00019982,2]
[357497358,1744090232804,-500.0,0.00019982,2]
[357497359,1744090232814,-500.0,0.00019982,2]
[357497360,1744090232823,-500.0,0.00019982,2]
[357497361,1744090232834,-500.0,0.00019982,2]
[357497362,1744090232843,-500.0,0.00019982,2]
[357497363,1744090232853,-500.0,0.00019982,2]
[357497364,1744090232862,-478.27659908,0.00019982,2]
[357497365,1744090232873,-500.0,0.00019982,2]
[357497366,1744090232883,-583.95,0.00019982,2]
[357497367,1744090232893,-500.0,0.00019982,2]
[357497368,1744090232903,-500.0,0.00019982,2]
[357497369,1744090232912,-500.0,0.00019982,2]
[357497370,1744090232921,-500.0,0.00019982,2]
[357497371,1744090232930,-500.0,0.00019982,2]
[357497372,1744090232939,-671.29,0.00019982,2]
[357497373,1744090232950,-500.0,0.00019982,2]
[357497374,1744090232960,-500.0,0.00019982,2]
[357497375,1744090232969,-500.0,0.00019982,2]
[357497376,1744090232978,-500.0,0.00019982,2]
[357497377,1744090232987,-500.0,0.00019982,2]
[357497378,1744090232997,-500.0,0.00019982,2]
[357497379,1744090233006,-896.67,0.00019982,2]
[357497380,1744090233016,-500.0,0.00019982,2]
[357497381,1744090233026,-500.0,0.00019982,2]
[357497382,1744090233035,-500.0,0.00019982,2]
[357497383,1744090233045,-500.0,0.00019982,2]
[357497384,1744090233054,-500.0,0.00019982,2]
[357497385,1744090233064,-500.0,0.00019982,2]
[357497386,1744090233074,-500.0,0.00019982,2]
[357497387,1744090233084,-500.0,0.00019982,2]
[357497388,1744090233093,-500.0,0.00019982,2]
[357497389,1744090233103,-500.0,0.00019982,2]
[357497390,1744090233113,-500.0,0.00019982,2]
[357497391,1744090233122,-500.0,0.00019982,2]
[357497392,1744090233132,-500.0,0.00019982,2]
[357497393,1744090233142,-513.89859802,0.00019982,2]
[357497394,1744090233152,-500.0,0.00019982,2]
[357497395,1744090233162,-500.0,0.00019982,2]
[357497396,1744090233171,-500.0,0.00019982,2]
[357497397,1744090233182,-637.4,0.00019982,2]
[357497398,1744090233192,-500.0,0.00019982,2]
[357497399,1744090233202,-665.25,0.00019982,2]
[357497400,1744090233211,-500.0,0.00019982,2]
[357497401,1744090233221,-500.0,0.00019982,2]
[357497402,1744090233230,-500.0,0.00019982,2]
[357497403,1744090233240,-500.0,0.00019982,2]
[357497404,1744090233250,-1225.48,0.00019982,2]
[357497405,1744090233261,-507.53218851,0.00019982,2]
[357497406,1744090233271,-500.0,0.00019982,2]
[357497407,1744090233281,-500.0,0.00019982,2]
[357497408,1744090233291,-690.06,0.00019982,2]
[357497409,1744090233301,-500.0,0.00019982,2]
[357497410,1744090233310,-500.0,0.00019982,2]
[357497411,1744090233320,-500.0,0.00019982,2]
[357497412,1744090233331,-500.0,0.00019982,2]
[357497413,1744090233340,-500.0,0.00019982,2]
[357497414,1744090233349,-500.0,0.00019982,2]
[357497415,1744090233359,-500.0,0.00019982,2]
[357497416,1744090233368,-500.0,0.00019982,2]
[357497417,1744090233378,-500.0,0.00019982,2]
[357497418,1744090233388,-500.0,0.00019982,2]
[357497419,1744090233398,-500.0,0.00019982,2]
[357497420,1744090233407,-500.0,0.00019982,2]
[357497421,1744090233417,-500.0,0.00019982,2]
[357497422,1744090233428,-521.55537741,0.00019982,2]
[357497423,1744090233437,-640.3,0.00019982,2]
[357497424,1744090233447,-500.0,0.00019982,2]
[357497425,1744090233458,-931.44,0.00019982,2]
[357497426,1744090233468,-257.6676309,0.00019982,2]
[357497427,1744090233478,-500.0,0.00019982,2]
[357497428,1744090233487,-1164.59,0.00019982,2]
[357497429,1744090233497,-500.0,0.00019982,2]
[357497430,1744090233507,-431.09544794,0.00019983,2]
[357497431,1744090233522,-68.90455206,0.00019983,2]
[357497432,1744090233531,-500.0,0.00019983,2]
[357497433,1744090233542,-500.0,0.00019983,2]
[357497434,1744090233552,-512.27899934,0.00019983,2]
[357497435,1744090233562,-500.0,0.00019983,2]
[357497436,1744090233572,-500.0,0.00019983,2]
[357497437,1744090233582,-500.0,0.00019983,2]
[357497438,1744090233592,-500.0,0.00019983,2]
[357497439,1744090233602,-500.0,0.00019983,2]
[357497440,1744090233612,-500.0,0.00019983,2]
[357497441,1744090233623,-273.04818288,0.00019983,2]
[357497442,1744090233633,-500.0,0.00019983,2]
[357497443,1744090233643,-500.0,0.00019983,2]
[357497444,1744090233653,-500.0,0.00019983,2]
[357497445,1744090233663,-500.0,0.00019983,2]
[357497446,1744090233673,-500.0,0.00019983,2]
[357497447,1744090233683,-500.0,0.00019983,2]
[357497448,1744090233694,-500.0,0.00019983,2]
[357497449,1744090233705,-500.0,0.00019983,2]
[357497450,1744090233715,-500.0,0.00019983,2]
[357497451,1744090233726,-176.4592768,0.00019983,2]
[357497467,1744090237912,-500.0,0.0001998,2]
[357497469,1744090237923,-503.95354207,0.0001998,2]
[357497470,1744090237933,-500.0,0.00019981,2]
[357497472,1744090237943,-500.0,0.00019982,2]
[357497473,1744090237953,-732.17,0.00019982,2]
[357497474,1744090237963,-323.5407232,0.00019983,2]
[357497475,1744090237973,-500.0,0.00019983,2]
[357497476,1744090237984,-500.0,0.00019983,2]
[357497477,1744090237994,-500.0,0.00019983,2]
[357497478,1744090238004,-500.0,0.00019983,2]
[357497479,1744090238013,-500.0,0.00019983,2]
[357497480,1744090238023,-500.0,0.00019983,2]
[357497481,1744090238032,-500.0,0.00019983,2]
[357497482,1744090238042,-500.0,0.00019983,2]
[357497483,1744090238051,-506.25762146,0.00019983,2]
[357497484,1744090238061,-200.0,0.00019983,2]
[357497485,1744090238071,-500.0,0.00019983,2]
[357497486,1744090238081,-500.0,0.00019983,2]
[357497487,1744090238090,-500.0,0.00019983,2]
[357497488,1744090238100,-500.0,0.00019983,2]
[357497489,1744090238110,-596.69,0.00019983,2]
[357497490,1744090238119,-500.0,0.00019983,2]
[357497491,1744090238129,-500.0,0.00019983,2]
[357497492,1744090238139,-500.0,0.00019983,2]
[357497493,1744090238148,-500.0,0.00019983,2]
[357497494,1744090238158,-500.0,0.00019983,2]
[357497495,1744090238168,-500.0,0.00019983,2]
[357497496,1744090238177,-391.42195333,0.00019983,2]
[357497497,1744090238187,-500.0,0.00019983,2]
[357497498,1744090238196,-500.0,0.00019983,2]
[357497499,1744090238206,-500.0,0.00019983,2]
[357497500,1744090238216,-500.0,0.00019983,2]
[357497501,1744090238226,-514.51850904,0.00019983,2]
[357497502,1744090238235,-556.05776315,0.00019983,2]
[357497503,1744090238245,-500.0,0.00019983,2]
[357497504,1744090238254,-500.0,0.00019983,2]
[357497505,1744090238263,-500.0,0.00019983,2]
[357497506,1744090238273,-72.54647437,0.00019983,2]
[357497507,1744090238294,-427.45352563,0.00019983,2]
[357497508,1744090238305,-500.0,0.00019983,2]
[357497509,1744090238314,-500.0,0.00019983,2]
[357497510,1744090238324,-500.0,0.00019983,2]
[357497511,1744090238333,-500.0,0.00019983,2]
[357497512,1744090238342,-290.7711242,0.00019983,2]
[357497513,1744090238352,-628.08029446,0.00019983,2]
[357497514,1744090238362,-500.0,0.00019983,2]
[357497515,1744090238371,-500.0,0.00019983,2]
[357497516,1744090238381,-500.0,0.00019983,2]
[357497517,1744090238390,-116.35807594,0.00019983,2]
[357497518,1744090238402,-441.15776283,0.00019983,2]
[357497519,1744090238412,-500.0,0.00019983,2]
[357497520,1744090238421,-500.0,0.00019983,2]
[357497521,1744090238431,-500.0,0.00019983,2]
[357497522,1744090238440,-543.83115562,0.00019983,2]
[357497523,1744090238450,-509.8248058,0.00019983,2]
[357497524,1744090238459,-530.08233444,0.00019983,2]
[357497525,1744090238469,-500.0,0.00019983,2]
[357497526,1744090238478,-500.0,0.00019983,2]
[357497527,1744090238488,-555.3270344,0.00019983,2]
[357497528,1744090238498,-500.0,0.00019983,2]
[357497529,1744090238509,-500.0,0.00019983,2]
[357497530,1744090238519,-500.0,0.00019983,2]
[357497531,1744090238528,-500.0,0.00019983,2]
[357497532,1744090238537,-487.05041011,0.00019983,2]
[357497533,1744090238547,-500.0,0.00019983,2]
[357497534,1744090238557,-500.0,0.00019983,2]
[357497535,1744090238566,-691.82,0.00019983,2]
[357497536,1744090238576,-504.50093344,0.00019983,2]
[357497537,1744090238585,-500.0,0.00019983,2]
[357497538,1744090238595,-500.0,0.00019983,2]
[357497539,1744090238604,-500.0,0.00019983,2]
[357497540,1744090238613,-414.32164355,0.00019983,2]
[357497541,1744090238626,-85.67835645,0.00019983,2]
[357497542,1744090238635,-587.28,0.00019983,2]
[357497543,1744090238645,-500.0,0.00019983,2]
[357497544,1744090238654,-471.39722945,0.00019983,2]
[357497545,1744090238664,-500.0,0.00019983,2]
[357497546,1744090238677,-500.0,0.00019983,2]
[357497547,1744090238687,-612.56065452,0.00019983,2]
[357497548,1744090238697,-500.0,0.00019983,2]
[357497549,1744090238927,-500.0,0.00019983,2]
[357497550,1744090238938,-500.0,0.00019983,2]
[357497551,1744090238947,-500.0,0.00019983,2]
[357497552,1744090238957,-500.0,0.00019983,2]
[357497553,1744090238967,-500.0,0.00019983,2]
[357497554,1744090238977,-500.0,0.00019983,2]
[357497555,1744090238987,-500.0,0.00019983,2]
[357497556,1744090238996,-527.59776704,0.00019983,2]
[357497557,1744090239006,-500.0,0.00019983,2]
[357497558,1744090239016,-500.0,0.00019983,2]
[357497559,1744090239025,-500.0,0.00019983,2]
[357497560,1744090239035,-500.0,0.00019983,2]
[357497561,1744090239045,-642.9,0.00019983,2]
[357497562,1744090239055,-500.0,0.00019983,2]
[357497563,1744090239064,-190.45713921,0.00019983,2]
[357497564,1744090239074,-650.59,0.00019983,2]
[357497565,1744090239083,-500.0,0.00019983,2]
[357497566,1744090239093,-559.87,0.00019983,2]
[357497567,1744090239103,-612.08291248,0.00019983,2]
[357497568,1744090239113,-500.0,0.00019983,2]
[357497569,1744090239122,-363.66530971,0.00019983,2]
[357497570,1744090239132,-500.0,0.00019983,2]
[357497571,1744090239142,-500.0,0.00019983,2]
[357497572,1744090239151,-500.0,0.00019983,2]
[357497573,1744090239161,-500.0,0.00019983,2]
[357497574,1744090239171,-500.0,0.00019983,2]
[357497575,1744090239181,-500.0,0.00019983,2]
[357497576,1744090239191,-500.0,0.00019983,2]
[357497577,1744090239201,-500.0,0.00019983,2]
[357497578,1744090239211,-500.0,0.00019983,2]
[357497579,1744090239221,-500.0,0.00019983,2]
[357497580,1744090239231,-500.0,0.00019983,2]
[357497581,1744090239240,-502.99,0.00019983,2]
[357497582,1744090239250,-319.91809902,0.00019983,2]
[357497583,1744090239260,-500.0,0.00019983,2]
[357497584,1744090239271,-500.0,0.00019983,2]
[357497585,1744090239281,-584.46,0.00019983,2]
[357497586,1744090239291,-500.0,0.00019983,2]
[357497587,1744090239301,-500.0,0.00019983,2]
[357497588,1744090239316,-1136.79,0.00019983,2]
[357497589,1744090239326,-500.0,0.00019983,2]
[357497590,1744090239337,-236.34092309,0.00019983,2]
[357497594,1744090239476,-634.90314799,0.00019983,2]
[357497595,1744090239488,-219.78592892,0.00019983,2]
[357497596,1744090239498,-500.0,0.00019983,2]
[357497599,1744090239516,-500.0,0.00019983,2]
[357497600,1744090239534,-500.0,0.00019983,2]
[357497601,1744090239545,-633.46,0.00019983,2]
[357497602,1744090239555,-846.06,0.00019983,2]
[357497603,1744090239565,-500.0,0.00019983,2]
[357497604,1744090239575,-500.0,0.00019983,2]
[357497605,1744090239585,-500.0,0.00019983,2]
[357497606,1744090239595,-500.0,0.00019983,2]
[357497608,1744090239607,-1133.83,0.00019983,2]
[357497609,1744090239620,-500.0,0.00019983,2]
[357497610,1744090239630,-1701.67,0.00019983,2]
[357497611,1744090239640,-500.0,0.00019983,2]
[357497612,1744090239649,-534.6,0.00019983,2]
[357497613,1744090239659,-625.54,0.00019983,2]
[357497614,1744090239669,-500.0,0.00019983,2]
[357497615,1744090239678,-500.0,0.00019983,2]
[357497616,1744090239688,-608.42,0.00019983,2]
[357497617,1744090239698,-500.0,0.00019983,2]
[357497619,1744090239707,-2070.25,0.00019983,2]
[357497621,1744090239717,-500.0,0.00019983,2]
[357497623,1744090239727,-500.0,0.00019983,2]
[357497625,1744090239736,-500.0,0.00019983,2]
[357497626,1744090239746,-500.0,0.00019983,2]
[357497628,1744090239758,-500.0,0.00019983,2]
[357497629,1744090239768,-4266.66,0.00019983,2]
[357497630,1744090239777,-500.0,0.00019983,2]
[357497631,1744090239787,-500.0,0.00019983,2]
[357497632,1744090239798,-500.0,0.00019983,2]
[357497633,1744090239809,-500.0,0.00019983,2]
[357497635,1744090239818,-1000.59,0.00019983,2]
[357497637,1744090239828,-500.0,0.00019983,2]
[357497638,1744090239838,-500.0,0.00019983,2]
[357497639,1744090239848,-500.0,0.00019983,2]
[357497640,1744090239858,-500.0,0.00019983,2]
[357497641,1744090239869,-500.0,0.00019983,2]
[357497642,1744090239879,-500.0,0.00019983,2]
[357497643,1744090239889,-500.0,0.00019983,2]
[357497644,1744090239898,-500.0,0.00019985,2]
[357497645,1744090239908,-503.75030841,0.00019985,2]
[357497646,1744090239917,-500.0,0.00019985,2]
[357497647,1744090239927,-500.0,0.00019985,2]
[357497649,1744090239937,-500.0,0.00019985,2]
[357497650,1744090239947,-500.0,0.00019985,2]
[357497652,1744090239956,-500.0,0.00019985,2]
[357497654,1744090239966,-500.0,0.00019985,2]
[357497656,1744090239975,-500.0,0.00019985,2]
[357497657,1744090239985,-500.0,0.00019985,2]
[357497658,1744090239995,-612.7,0.00019985,2]
[357497660,1744090240005,-500.0,0.00019985,2]
[357497661,1744090240014,-500.0,0.00019985,2]
[357497662,1744090240024,-500.0,0.00019985,2]
[357497663,1744090240034,-500.0,0.00019985,2]
[357497664,1744090240044,-603.20679786,0.00019985,2]
[357497665,1744090240055,-500.0,0.00019985,2]
[357497666,1744090240066,-500.0,0.00019985,2]
[357497667,1744090240076,-500.0,0.00019985,2]
[357497669,1744090240086,-500.0,0.00019985,2]
[357497671,1744090240095,-500.0,0.00019985,2]
[357497672,1744090240105,-199.98668321,0.00020156,2]
[357497673,1744090240114,-805.8,0.00020245,3]
[357497675,1744090240124,-818.3,0.00020255,2]
[357497676,1744090240133,-500.0,0.00020255,2]
[357497677,1744090240143,-500.0,0.00020255,2]
[357497679,1744090240152,-2302.42,0.00020255,2]
[357497680,1744090240162,-924.23,0.00020255,2]
[357497681,1744090240172,-500.0,0.00020255,2]
[357497682,1744090240182,-920.99,0.00020255,2]
[357497683,1744090240205,-2679.96,0.00020255,2]
[357497684,1744090240215,-500.0,0.00020255,2]
[357497685,1744090240226,-559.7,0.00020255,2]
[357497686,1744090240236,-770.69,0.00020255,2]
[357497687,1744090240246,-500.0,0.00020255,2]
[357497688,1744090240255,-500.0,0.00020255,2]
[357497689,1744090240266,-1419.97,0.00020255,2]
[357497690,1744090240275,-1230.42,0.00020255,2]
[357497691,1744090240285,-500.0,0.00020255,2]
[357497693,1744090240296,-969.67,0.00020255,2]
[357497694,1744090240307,-500.0,0.00020255,2]
[357497695,1744090240317,-1157.85,0.00020255,2]
[357497696,1744090240328,-352.70119875,0.00020255,2]
[357497697,1744090240338,-813.13,0.00020255,2]
[357497698,1744090240348,-667.97,0.00020255,2]
[357497699,1744090240358,-500.0,0.00020255,2]
[357497700,1744090240368,-285.43,0.00020255,2]
[357497701,1744090240378,-630.72423109,0.00020256,2]